fUSD/lending_fUSD_20251221
["ID","MTS","AMOUNT","RATE_DAILY","PERIOD"]
[399406849,1766328645926,-4355.27463656,0.00016438,2]
[399406850,1766328645936,-4355.27463656,0.00016438,2]
[399406851,1766328645946,-4355.27463656,0.00016438,2]
[399406852,1766328645956,-4355.27463656,0.00016438,2]
[399406853,1766328645966,-4355.27463656,0.00016438,2]
[399406854,1766328645976,-4355.27463656,0.00016438,2]
[399406855,1766328645985,-4355.27463652,0.00016438,2]
[399406856,1766328645995,-4355.27463652,0.00016438,2]
[399406857,1766328646005,-4355.27463652,0.00016438,2]
[399406858,1766328646014,-800.0,0.00016438,2]
[399406860,1766328646024,-150.0,0.00016444,2]
[399406862,1766328646035,-150.0,0.00016452,2]
[399406863,1766328646044,-1600.0,0.0001646,2]
[399406865,1766328646055,-150.0,0.00016461,2]
[399406867,1766328646065,-150.0,0.00016477,2]
[399406869,1766328646075,-150.0,0.0001648,2]
[399406871,1766328646084,-150.0,0.00016491,2]
[399406874,1766328646094,-150.0,0.00016501,2]
[399406877,1766328646104,-150.0,0.00016501,2]
[399406880,1766328646113,-150.0,0.00016501,2]
[399406882,1766328646123,-150.0,0.00016501,2]
[399406883,1766328646132,-150.0,0.00016516,2]
[399406884,1766328646142,-811.84683956,0.00016521,2]
[399406885,1766328646151,-1000.0,0.00016521,2]
[399406886,1766328646160,-1000.0,0.00016521,2]
[399406887,1766328646170,-501.99535785,0.00016521,2]
[399406888,1766328646180,-1000.0,0.00016521,2]
[399406889,1766328646189,-1000.0,0.00016521,2]
[399406891,1766328646199,-1000.0,0.00016521,2]
[399406892,1766328646208,-1000.0,0.00016521,2]
[399406893,1766328646224,-1000.0,0.00016521,2]
[399406894,1766328646234,-1000.0,0.00016521,2]
[399406895,1766328646243,-1000.0,0.00016521,2]
[399406896,1766328646255,-1000.0,0.00016521,2]
[399406897,1766328646264,-1000.0,0.00016521,2]
[399406898,1766328646274,-1000.0,0.00016521,2]
[399406899,1766328646284,-1000.0,0.00016521,2]
[399406900,1766328646294,-1000.0,0.00016521,2]
[399406901,1766328646304,-1000.0,0.00016521,2]
[399406902,1766328646314,-1000.0,0.00016521,2]
[399406903,1766328646324,-1000.0,0.00016521,2]
[399406904,1766328646333,-1000.0,0.00016521,2]
[399406905,1766328646343,-511.36256137,0.00016521,2]
[399406906,1766328646354,-986.87494443,0.00016521,2]
[399406907,1766328646364,-1000.0,0.00016521,2]
[399406908,1766328646373,-979.05040621,0.00016521,2]
[399406909,1766328646383,-810.71387342,0.00016521,2]
[399406910,1766328646392,-1000.0,0.00016521,2]
[399406911,1766328646401,-1000.0,0.00016521,2]
[399406912,1766328646411,-1000.0,0.00016521,2]
[399406913,1766328646421,-1001.73216536,0.00016521,2]
[399406914,1766328646430,-669.31135743,0.00016521,2]
[399406915,1766328646440,-576.10062402,0.00016521,2]
[399406917,1766328646449,-1000.0,0.00016521,2]
[399406918,1766328646459,-378.15038662,0.00016521,2]
[399406920,1766328646468,-1000.0,0.00016521,2]
[399406921,1766328646478,-1000.0,0.00016521,2]
[399406922,1766328646487,-1000.0,0.00016521,2]
[399406923,1766328646496,-1000.0,0.00016521,2]
[399406924,1766328646506,-1000.0,0.00016521,2]
[399406925,1766328646515,-1000.0,0.00016521,2]
[399406926,1766328646525,-1000.0,0.00016521,2]
[399406927,1766328646534,-1000.0,0.00016521,2]
[399406928,1766328646544,-1000.0,0.00016521,2]
[399406929,1766328646553,-1000.0,0.00016521,2]
[399406930,1766328646563,-1000.0,0.00016521,2]
[399406931,1766328646572,-150.0,0.00016521,2]
[399406932,1766328646581,-150.0,0.00016541,2]
[399406933,1766328646591,-150.0,0.0001655,2]
[399406934,1766328646601,-150.0,0.00016553,2]
[399406935,1766328646610,-3500.0,0.0001656,2]
[399406936,1766328646620,-3500.0,0.0001656,2]
[399406937,1766328646630,-150.0,0.00016562,2]
[399406938,1766328646640,-150.0,0.00016562,2]
[399406939,1766328646649,-150.0,0.00016562,2]
[399406940,1766328646660,-150.0,0.00016582,2]
[399406941,1766328646670,-150.0,0.00016582,2]
[399406942,1766328646680,-150.0,0.00016589,2]
[399406943,1766328646689,-150.0,0.00016598,2]
[399406944,1766328646698,-150.0,0.00016622,2]
[399406945,1766328646761,-150.0,0.00016625,2]
[399406946,1766328646771,-150.0,0.00016632,2]
[399406947,1766328646781,-150.0,0.00016647,2]
[399406948,1766328646791,-150.0,0.00016647,2]
[399406949,1766328646801,-150.0,0.00016661,2]
[399406950,1766328646811,-150.0,0.00016663,2]
[399406951,1766328646819,-150.0,0.00016663,2]
[399406952,1766328646829,-150.0,0.00016695,2]
[399406953,1766328646838,-150.0,0.00016697,2]
[399406954,1766328646848,-173.18,0.00016703,2]
[399406955,1766328646857,-150.0,0.00016703,2]
[399406956,1766328646867,-150.0,0.00016703,2]
[399406957,1766328646876,-150.0,0.00016703,2]
[399406958,1766328646885,-150.0,0.00016703,2]
[399406959,1766328646895,-150.0,0.00016732,2]
[399406960,1766328646904,-150.0,0.00016733,2]
[399406961,1766328646913,-150.0,0.00016744,2]
[399406962,1766328646923,-150.0,0.00016744,2]
[399406963,1766328646932,-150.0,0.00016744,2]
[399406964,1766328646941,-150.0,0.00016744,2]
[399406965,1766328646950,-173.18,0.00016759,2]
[399406966,1766328646959,-150.0,0.00016769,2]
[399406967,1766328646969,-222.23,0.00016771,2]
[399406968,1766328646978,-150.0,0.00016774,2]
[399406969,1766328646987,-150.0,0.00016784,2]
[399406970,1766328646996,-150.0,0.00016792,2]
[399406971,1766328647005,-2129.0,0.00016797,2]
[399406972,1766328647015,-150.0,0.00016806,2]
[399406973,1766328647024,-222.23,0.0001681,2]
[399406974,1766328647033,-173.18,0.00016815,2]
[399406975,1766328647043,-150.0,0.00016816,2]
[399406976,1766328647052,-150.0,0.00016825,2]
[399406977,1766328647061,-150.0,0.00016825,2]
[399406978,1766328647071,-193.11,0.00016826,2]
[399406979,1766328647080,-150.0,0.00016841,2]
[399406980,1766328647090,-150.0,0.00016842,2]
[399406981,1766328647099,-150.0,0.00016845,2]
[399406982,1766328647109,-150.0,0.00016865,2]
[399406983,1766328647118,-193.11,0.00016867,2]
[399406984,1766328647127,-151.0,0.00016868,2]
[399406985,1766328647136,-4895.9847178,0.00016871,2]
[399406986,1766328647146,-522007.2827039,0.00016871,2]
[399406987,1766328647155,-150.0,0.00016878,2]
[399406988,1766328647165,-150.0,0.00016889,2]
[399406989,1766328647174,-781.6968838,0.0001689,2]
[399406990,1766328647183,-170.00069611,0.0001689,2]
[399406991,1766328647192,-1406.60977324,0.0001689,2]
[399406992,1766328647203,-200.80764574,0.00016894,2]
[399406993,1766328647212,-30246.06312534,0.000169,2]
[399406994,1766328647225,-1413.57889936,0.000169,2]
[399406995,1766328647234,-458.04273928,0.000169,2]
[399406996,1766328647243,-32604.71136386,0.000169,2]
[399406997,1766328647253,-150.0,0.00016901,2]
[399406998,1766328647263,-150.0,0.00016905,2]
[399406999,1766328647272,-150.0,0.00016905,2]
[399407000,1766328647282,-193.11,0.00016909,2]
[399407001,1766328647294,-150.0,0.00016914,2]
[399407002,1766328647304,-150.0,0.00016916,2]
[399407003,1766328647314,-150.0,0.00016938,2]
[399407004,1766328647324,-150.0,0.00016946,2]
[399407005,1766328647333,-150.0,0.0001695,2]
[399407006,1766328647343,-150.0,0.00016973,2]
[399407007,1766328647352,-1345.44458259,0.00016976,2]
[399407008,1766328647362,-549.74315086,0.00016983,2]
[399407009,1766328647371,-158.48329942,0.00016986,2]
[399407010,1766328647380,-155.64705311,0.00016986,2]
[399407011,1766328647390,-152.0542516,0.00016986,2]
[399407012,1766328647400,-160.33063992,0.00016986,2]
[399407013,1766328647409,-164.52110484,0.00016986,2]
[399407014,1766328647419,-156.76422926,0.00016986,2]
[399407015,1766328647429,-152.11986511,0.00016986,2]
[399407016,1766328647439,-157.75435091,0.00016986,2]
[399407017,1766328647448,-150.82546103,0.00016986,2]
[399407018,1766328647459,-151.68546766,0.00016986,2]
[399407019,1766328647469,-151.72084113,0.00016986,2]
[399407020,1766328647479,-152.94375339,0.00016986,2]
[399407021,1766328647490,-152.70737667,0.00016986,2]
[399407022,1766328647500,-162.0002847,0.00016986,2]
[399407023,1766328647509,-105482.86,0.00016986,2]
[399407024,1766328647520,-1345.44458259,0.0001699,2]
[399407025,1766328647529,-151.0,0.00016997,2]
[399407026,1766328647538,-151.0,0.00016997,2]
[399407027,1766328647547,-151.0,0.00016997,2]
[399407028,1766328647556,-1101.62355977,0.00016999,5]
[399407029,1766328647565,-397.62,0.00016999,2]
[399407030,1766328647575,-3207268.66089686,0.00017,2]
[399407031,1766328647765,-1583.41443103,0.00017,2]
[399407032,1766328647775,-36659.22978072,0.00017,2]
[399407033,1766328647836,-165.47156837,0.00013273,2]
[399407034,1766328647845,-165.33365869,0.00013273,2]
[399407035,1766328647856,-201.68060624,0.00013273,2]
[399407036,1766328647865,-2784655.69511212,0.00017,2]
[399407037,1766328647874,-250.0,0.00017,2]
[399407038,1766328647884,-6453.0,0.00017023,2]
[399407039,1766328647892,-1618.33910672,0.00017068,2]
[399407040,1766328647902,-1002.96949263,0.00017068,2]
[399407041,1766328647911,-1500.0,0.00017068,2]
[399407042,1766328647920,-1500.0,0.00017068,2]
[399407043,1766328647930,-1500.0,0.00017068,2]
[399407044,1766328647943,-248.8938967,0.00017068,2]
[399407045,1766328647955,-1003.26967144,0.00017068,2]
[399407046,1766328647966,-1028.09825858,0.00017068,2]
[399407047,1766328647976,-1002.2323831,0.00017068,2]
[399407048,1766328647985,-849.22640037,0.00017068,2]
[399407049,1766328647994,-502.52786195,0.00017068,2]
[399407050,1766328648003,-226.54246888,0.00017068,2]
[399407051,1766328648012,-1500.0,0.00017068,2]
[399407052,1766328648021,-1506.6907831,0.00017068,2]
[399407053,1766328648032,-1500.0,0.00017068,2]
[399407054,1766328648041,-1500.0,0.00017068,2]
[399407055,1766328648050,-517.55500559,0.00017068,2]
[399407056,1766328648059,-1002.34941568,0.00017068,2]
[399407057,1766328648067,-1056.72332682,0.00017068,2]
[399407058,1766328648076,-1500.0,0.00017068,2]
[399407059,1766328648085,-1500.0,0.00017068,2]
[399407060,1766328648094,-1500.0,0.00017068,2]
[399407061,1766328648104,-1500.0,0.00017068,2]
[399407062,1766328648112,-1500.0,0.00017068,2]
[399407063,1766328648121,-1500.0,0.00017068,2]
[399407064,1766328648130,-397.75313595,0.00017068,2]
[399407065,1766328648139,-1157.70110556,0.00017068,2]
[399407066,1766328648148,-1500.0,0.00017068,2]
[399407067,1766328648157,-635.83054763,0.00017068,2]
[399407068,1766328648166,-1500.0,0.00017068,2]
[399407069,1766328648175,-1500.0,0.00017068,2]
[399407070,1766328648184,-1500.0,0.00017068,2]
[399407071,1766328648193,-1500.0,0.00017068,2]
[399407072,1766328648204,-1502.24967112,0.00017068,2]
[399407073,1766328648226,-4000.0,0.00017108,2]
[399407074,1766328648245,-3577.26528562,0.00017108,2]
[399407076,1766328648254,-219.80510971,0.00017521,2]
[399407077,1766328648264,-1605.54250255,0.00017534,2]
[399407078,1766328648273,-1000.0,0.00017616,2]
[399407079,1766328648282,-2000.0,0.00017616,2]
[399407080,1766328648292,-2000.0,0.00017616,2]
[399407081,1766328648301,-1503.80602504,0.00017616,2]
[399407082,1766328648311,-2080.39649573,0.00017616,2]
[399407083,1766328648320,-2000.0,0.00017616,2]
[399407084,1766328648330,-2000.0,0.00017616,2]
[399407085,1766328648339,-209.50912244,0.00017616,2]
[399407086,1766328648348,-864.55562986,0.00017616,2]
[399407087,1766328648358,-2000.0,0.00017616,2]
[399407088,1766328648367,-2000.0,0.00017616,2]
[399407089,1766328648377,-2004.58244628,0.00017616,2]
[399407090,1766328648386,-2000.0,0.00017616,2]
[399407091,1766328648396,-2000.0,0.00017616,2]
[399407092,1766328648405,-2000.0,0.00017616,2]
[399407093,1766328648415,-2000.0,0.00017616,2]
[399407094,1766328648426,-2000.0,0.00017616,2]
[399407095,1766328648435,-4500.0,0.00017656,2]
[399407096,1766328648445,-1000.0,0.00017668,2]
[399407097,1766328648454,-500.0,0.0001796,2]
[399407098,1766328648463,-151.0,0.00017997,2]
[399407099,1766328648473,-147940.48101906,0.00017998,2]
[399407100,1766328648482,-804556.41302564,0.00018,2]
[399407101,1766328648491,-42844.01227958,0.00018,2]
[399407102,1766328648500,-1185.66627314,0.00018,2]
[399407103,1766328648509,-1000.0,0.00018082,2]
[399407104,1766328648518,-1772.55333379,0.000181,2]
[399407105,1766328648528,-553.63,0.00018129,2]
[399407106,1766328648537,-2500.0,0.00018164,2]
[399407107,1766328648546,-1003.04548544,0.00018164,2]
[399407108,1766328648555,-2637.88145515,0.00018164,2]
[399407109,1766328648564,-2500.0,0.00018164,2]
[399407110,1766328648574,-734.47830759,0.00018164,2]
[399407111,1766328648583,-2443.06963152,0.00018164,2]
[399407112,1766328648593,-1860.83448827,0.00018164,2]
[399407113,1766328648603,-2500.0,0.00018164,2]
[399407114,1766328648612,-2500.0,0.00018164,2]
[399407115,1766328648622,-439.42444411,0.00018164,2]
[399407116,1766328648631,-2500.0,0.00018164,2]
[399407117,1766328648640,-3761.33843454,0.00018204,2]
[399407118,1766328648649,-47666.64,0.00018356,2]
[399407119,1766328648659,-1336.0,0.00018425,2]
[399407120,1766328648667,-3000.0,0.00018712,2]
[399407121,1766328648676,-1065.61474305,0.00018712,2]
[399407122,1766328648686,-2648.62512129,0.00018712,2]
[399407123,1766328648695,-3000.0,0.00018712,2]
[399407124,1766328648704,-3000.0,0.00018712,2]
[399407125,1766328648714,-9035.0,0.00018725,2]
[399407126,1766328648723,-1000.0,0.0001876,2]
[399407127,1766328648732,-150.99,0.000188,2]
[399407128,1766328648741,-150.99,0.000188,2]
[399407129,1766328648750,-150.99,0.000188,2]
[399407130,1766328648760,-150.99,0.000188,2]
[399407131,1766328648769,-150.99,0.000188,2]
[399407132,1766328648778,-150.99,0.000188,2]
[399407133,1766328648788,-150.99,0.000188,2]
[399407134,1766328648797,-150.99,0.000188,2]
[399407135,1766328648806,-150.99,0.000188,2]
[399407136,1766328648816,-150.99,0.000188,2]
[399407137,1766328648825,-150.99,0.000188,2]
[399407138,1766328648834,-150.99,0.000188,2]
[399407139,1766328648843,-150.99,0.000188,2]
[399407140,1766328648854,-522007.2827039,0.00018802,2]
[399407141,1766328648863,-160.39542526,0.000189,2]
[399407142,1766328648872,-300.0,0.00019,2]
[399407143,1766328648881,-105544.72904044,0.00019,2]
[399407144,1766328648890,-356.84579956,0.0001901,7]
[399407145,1766328648900,-1092.4418541,0.00019064,2]
[399407146,1766328648909,-3000.0,0.00019178,2]
[399407147,1766328648918,-3014.97600553,0.00019178,7]
[399407148,1766328648927,-790.0,0.00019178,2]
[399407149,1766328648937,-219.95868703,0.0001926,2]
[399407150,1766328648946,-3303.48287397,0.0001926,2]
[399407151,1766328648955,-3500.0,0.0001926,2]
[399407152,1766328648965,-1000.0,0.00019275,2]
[399407153,1766328648974,-1000.0,0.00019438,2]
[399407154,1766328648984,-553.63,0.00019499,2]
[399407155,1766328648995,-243.7567258,0.00019554,2]
[399407156,1766328649005,-3341.26500224,0.00019808,2]
[399407157,1766328649015,-1790.54189972,0.00019953,2]
[399407158,1766328649025,-10877.62322293,0.0002,2]
[399407159,1766328649034,-1527.86571511,0.0002,2]
[399407160,1766328649043,-7958.56344693,0.0002,2]
[399407161,1766328649054,-550.54433387,0.0002,2]
[399407162,1766328649066,-1000.0,0.0002,7]
[399407163,1766328649077,-500.0,0.00020007,2]
[399407164,1766328649087,-500.0,0.00020007,2]
[399407165,1766328649108,-500.0,0.00020007,2]
[399407166,1766328649118,-500.0,0.00020007,2]
[399407167,1766328649127,-549.68,0.00020007,2]
[399407168,1766328649135,-500.0,0.00020007,2]
[399407169,1766328649144,-500.0,0.00020007,2]
[399407170,1766328649154,-500.0,0.00020007,2]
[399407171,1766328649163,-16861.43189215,0.00020008,2]
[399407172,1766328649172,-8720.0,0.0002001,2]
[399407173,1766328649183,-1582.0,0.00020065,2]
[399407174,1766328649192,-1000.0,0.00020116,2]
[399407175,1766328649203,-1000.0,0.00020187,2]
[399407176,1766328649215,-1582.0,0.00020311,2]
[399407177,1766328649227,-1582.0,0.00020321,2]
[399407178,1766328649237,-191.85,0.00020548,2]
[399407179,1766328649247,-1582.0,0.0002056,2]
[399407180,1766328649257,-2904.0,0.00020598,2]
[399407181,1766328649267,-200.0,0.00020667,2]
[399407182,1766328649277,-207.4,0.00020667,2]
[399407183,1766328649287,-215.0738,0.00020667,2]
[399407184,1766328649296,-223.0315306,0.00020667,2]
[399407185,1766328649307,-231.28369723,0.00020667,2]
[399407186,1766328649317,-239.84119403,0.00020667,2]
[399407187,1766328649327,-248.71531821,0.00020667,2]
[399407188,1766328649336,-151.0,0.00020667,2]
[399407189,1766328649346,-257.91778498,0.00020667,2]
[399407190,1766328649355,-267.46074303,0.00020667,2]
[399407191,1766328649364,-300.0,0.00020667,2]
[399407192,1766328649374,-22571.15008706,0.000207,2]
[399407193,1766328649384,-151.0,0.00020731,2]
[399407194,1766328649394,-522007.2827039,0.00020734,2]
[399407195,1766328649403,-151.0,0.00020734,2]
[399407196,1766328649412,-151.0,0.00020734,2]
[399407197,1766328649422,-209.949731,0.00020734,2]
[399407198,1766328649431,-151.0,0.00020734,2]
[399407199,1766328649440,-151.0,0.00020734,2]
[399407200,1766328649449,-241.263602,0.00020734,2]
[399407201,1766328649457,-293.018097,0.00020734,2]
[399407202,1766328649467,-293.018097,0.00020734,2]
[399407203,1766328649476,-293.018097,0.00020734,2]
[399407204,1766328649485,-293.018097,0.00020734,2]
[399407205,1766328649494,-851.108477,0.00020734,2]
[399407206,1766328649503,-851.108477,0.00020734,2]
[399407207,1766328649512,-851.108477,0.00020734,2]
[399407208,1766328649522,-851.108477,0.00020734,2]
[399407209,1766328649532,-736.669496,0.00020734,2]
[399407210,1766328649541,-736.669496,0.00020734,2]
[399407211,1766328649550,-736.669496,0.00020734,2]
[399407212,1766328649559,-736.669496,0.00020734,2]
[399407213,1766328649568,-500.0,0.00020764,2]
[399407214,1766328649577,-1000.0,0.00020795,2]
[399407215,1766328649586,-1582.0,0.00020948,2]
[399407216,1766328649596,-1455.0,0.00020952,2]
[399407217,1766328649606,-20000.0,0.00021,2]
[399407218,1766328649615,-160.0,0.00021,7]
[399407219,1766328649624,-350.0,0.00021,2]
[399407220,1766328649633,-1455.0,0.00021006,2]
[399407221,1766328649642,-1582.0,0.00021058,2]
[399407222,1766328649651,-12466.61,0.00021068,2]
[399407223,1766328649661,-1455.0,0.00021286,2]
[399407224,1766328649671,-500.0,0.00021288,2]
[399407225,1766328649680,-1582.0,0.00021412,2]
[399407226,1766328649689,-1582.0,0.00021468,2]
[399407227,1766328649699,-1455.0,0.00021494,2]
[399407228,1766328649708,-57327.80658221,0.000215,2]
[399407229,1766328649717,-1455.0,0.0002151,2]
[399407230,1766328649731,-1455.0,0.00021514,2]
[399407231,1766328649740,-1455.0,0.00021567,2]
[399407232,1766328649749,-500.0,0.00021592,2]
[399407233,1766328649759,-1629.451,0.00021593,2]
[399407234,1766328649768,-612.0,0.00021593,2]
[399407235,1766328649777,-3456.0,0.00021593,2]
[399407236,1766328649787,-1326.0,0.00021593,2]
[399407237,1766328649796,-1262.0,0.00021593,2]
[399407238,1766328649805,-518.0,0.00021593,2]
[399407239,1766328649818,-150.0,0.00021593,2]
[399407240,1766328649828,-578.965,0.00021593,2]
[399407241,1766328649838,-6529.0,0.00021593,2]
[399407242,1766328649851,-194.105,0.00021593,2]
[399407243,1766328649860,-193.419,0.00021593,2]
[399407244,1766328649869,-155.801,0.00021593,2]
[399407245,1766328649879,-2429.0,0.00021593,2]
[399407246,1766328649890,-1582.0,0.00021614,2]
[399407247,1766328649899,-1582.0,0.00021633,2]
[399407248,1766328649909,-1582.0,0.00021676,2]
[399407249,1766328649918,-1455.0,0.00021681,2]
[399407250,1766328649928,-1455.0,0.00021684,2]
[399407251,1766328649937,-1455.0,0.00021724,2]
[399407252,1766328649946,-10000.0,0.00021817,2]
[399407253,1766328649955,-3710.0,0.00021854,2]
[399407254,1766328649964,-150.0,0.000219,2]
[399407255,1766328649973,-500.0,0.00021917,2]
[399407256,1766328649983,-500.0,0.00021917,3]
[399407257,1766328649992,-500.0,0.00021917,4]
[399407258,1766328650001,-500.0,0.00021917,5]
[399407259,1766328650011,-500.0,0.00021917,6]
[399407260,1766328650020,-500.0,0.00021917,7]
[399407261,1766328650029,-500.0,0.00021917,8]
[399407262,1766328650038,-500.0,0.00021917,9]
[399407263,1766328650047,-500.0,0.00021917,10]
[399407264,1766328650057,-500.0,0.00021917,11]
[399407265,1766328650066,-500.0,0.00021917,12]
[399407266,1766328650076,-479.14737294,0.00021917,13]
[399407267,1766328650086,-151.0,0.00021918,2]
[399407268,1766328650094,-151.0,0.00021918,2]
[399407269,1766328650104,-5000.0,0.00021918,2]
[399407270,1766328650113,-4128.96277353,0.00022,2]
[399407271,1766328650123,-794.26778141,0.00022,7]
[399407272,1766328650132,-4144.52,0.00022,7]
[399407273,1766328650142,-277.35679052,0.00022036,2]
[399407274,1766328650152,-311.1,0.00022036,2]
[399407275,1766328650161,-1455.0,0.00022166,2]
[399407276,1766328650170,-250.0,0.00022448,2]
[399407277,1766328650179,-151.0,0.000225,2]
[399407278,1766328650188,-151.0,0.000226,2]
[399407279,1766328650197,-1455.0,0.00022657,2]
[399407280,1766328650207,-522007.2827039,0.00022665,2]
[399407281,1766328650217,-1455.0,0.00022727,2]
[399407282,1766328650231,-1455.0,0.00022728,2]
[399407283,1766328650241,-350.0,0.00022996,2]
[399407285,1766328650251,-151.17822928,0.00023051,2]
[399407286,1766328650261,-287.61899177,0.00023405,2]
[399407287,1766328650271,-322.6107,0.00023405,2]
[399407289,1766328650280,-552.13552845,0.00023544,2]
[399407290,1766328650295,-502.43278642,0.00023568,2]
[399407291,1766328650304,-3710.0,0.00023603,2]
[399407292,1766328650313,-4144.52,0.000239,7]
[399407293,1766328650323,-9221.0,0.00024233,2]
[399407294,1766328650333,-1609.0,0.00024593,2]
[399407295,1766328650343,-612.0,0.00024593,2]
[399407296,1766328650353,-3456.0,0.00024593,2]
[399407297,1766328650362,-1326.0,0.00024593,2]
[399407298,1766328650372,-1262.0,0.00024593,2]
[399407299,1766328650382,-518.0,0.00024593,2]
[399407300,1766328650391,-150.0,0.00024593,2]
[399407301,1766328650401,-564.0,0.00024593,2]
[399407302,1766328650410,-4050.728,0.00024593,2]
[399407303,1766328650420,-150.0,0.00024593,2]
[399407304,1766328650429,-2429.0,0.00024593,2]
[399407305,1766328650439,-1000.0,0.00024658,2]
[399407306,1766328650449,-1790.54189972,0.0002469,2]
[399407307,1766328650458,-151.17822928,0.00024697,2]
[399407308,1766328650467,-298.26089446,0.00024774,2]
[399407309,1766328650476,-334.5472959,0.00024774,2]
[399407310,1766328650485,-500.0,0.00024799,2]
[399407311,1766328650495,-500.0,0.00024799,2]
[399407312,1766328650504,-500.0,0.00024799,2]
[399407313,1766328650514,-432.90096015,0.00024799,2]
[399407314,1766328650523,-500.0,0.00024799,2]
[399407315,1766328650532,-500.0,0.00024799,2]
[399407316,1766328650540,-500.0,0.00024799,2]
[399407317,1766328650550,-500.0,0.00024799,2]
[399407318,1766328650559,-500.0,0.00024799,2]
[399407319,1766328650568,-500.0,0.00024799,2]
[399407320,1766328650577,-500.0,0.00024799,2]
[399407321,1766328650588,-338.74351494,0.00024799,2]
[399407322,1766328650598,-500.0,0.00024799,2]
[399407323,1766328650607,-500.0,0.00024799,2]
[399407324,1766328650618,-500.0,0.00024799,2]
[399407325,1766328650628,-500.0,0.00024799,2]
[399407326,1766328650637,-549.68,0.00024799,2]
[399407327,1766328650646,-549.68,0.00024799,2]
[399407328,1766328650656,-500.0,0.00024799,2]
[399407329,1766328650666,-500.0,0.00024799,2]
[399407330,1766328650675,-500.0,0.00024799,2]
[399407331,1766328650684,-500.0,0.00024799,2]
[399407332,1766328650694,-151.0,0.000248,7]
[399407333,1766328650803,-151.0,0.000248,7]
[399407334,1766328650814,-151634.86639,0.000248,3]
[399407335,1766328650823,-500.0,0.00024899,2]
[399407336,1766328650832,-500.0,0.00024899,2]
[399407337,1766328650841,-500.0,0.00024899,2]
[399407338,1766328650851,-500.0,0.00024899,2]
[399407339,1766328650860,-500.0,0.00024899,2]
[399407340,1766328650869,-500.0,0.00024899,2]
[399407341,1766328650878,-500.0,0.00024899,2]
[399407342,1766328650886,-500.0,0.00024899,2]
[399407343,1766328650896,-549.68,0.00024899,2]
[399407344,1766328650906,-549.68,0.00024899,2]
[399407345,1766328650916,-221.06533037,0.00024899,2]
[399407346,1766328650926,-151.0,0.000249,7]
[399407347,1766328650936,-153.361639,0.000249,7]
[399407348,1766328650945,-13080.1110481,0.000249,3]
[399407349,1766328650955,-508.67595072,0.00025,7]
[399407350,1766328650964,-320.06511931,0.00025,3]
[399407351,1766328650974,-151.0,0.00025,7]
[399407352,1766328650983,-151.0,0.00025,7]
[399407353,1766328650993,-168.876176,0.00025,7]
[399407354,1766328651003,-151.0,0.00025,7]
[399407355,1766328651013,-293.018097,0.00025,7]
[399407356,1766328651023,-293.018097,0.00025,7]
[399407357,1766328651033,-293.018097,0.00025,7]
[399407358,1766328651043,-293.018097,0.00025,7]
[399407359,1766328651052,-851.108477,0.00025,2]
[399407360,1766328651062,-851.108477,0.00025,2]
[399407361,1766328651072,-851.108477,0.00025,2]
[399407362,1766328651082,-851.108477,0.00025,2]
[399407363,1766328651091,-736.669496,0.00025,7]
[399407364,1766328651101,-736.669496,0.00025,7]
[399407365,1766328651111,-736.669496,0.00025,7]
[399407366,1766328651122,-736.669496,0.00025,7]
[399407367,1766328651132,-150.0,0.00025,2]